Cogmind - Beta 9.5 --- EXPLORER MODE // 2020.04.10 @ 11:46:20 // Halloween2019/Abominations Player: K.Ioz Result: Destroyed by Lesser Abomination with Etherial Claws Performance ------------- Evolutions (0) 0 Regions Visited (1) 200 Robots Destroyed (0) 0 Value Destroyed (0) 0 Prototype IDs (0) 0 Alien Tech Used (0) 0 Bonus (0) 0 TOTAL SCORE: 200 Bonus ------- None Cogmind --------- Core Integrity 0/250 Matter 300/300 Energy 100/100 System Corruption 0% Temperature Cool (6) Movement Core (150) Ox2 Location -10/Materials Parts ------- > --- POWER (1) -------- (None) > --- PROPULSION (2) --- (None) > --- UTILITY (3) ------ Medium Storage Unit > --- WEAPON (2) ------- (None) > --- INVENTORY (8) ---- Light Ion Engine Targeting Computer Small Laser Peak State ------------ > --- POWER ------------ Light Ion Engine > --- PROPULSION ------- Light Treads Light Treads > --- UTILITY ---------- Medium Storage Unit Propulsion Shielding > --- WEAPON ----------- Assault Rifle Assault Rifle > --- INVENTORY -------- Light Ion Engine Targeting Computer [Rating: 7] Favorites ----------- Power Light Ion Engine Engine Light Ion Engine Propulsion Light Treads Treads Light Treads Utility Medium Storage Unit Storage Medium Storage Unit Protection Propulsion Shielding Weapon Assault Rifle Ballistic Gun Assault Rifle Build | -11 -10 ------- Run | Scr Mat Slots Evolved 1 | . 1 Power . | . . Propulsion . | . . Utility 1 | . 1 Weapon . | . . Parts Attached 7 | 7 . Power 1 | 1 . Engine 1 | 1 . Core . | . . Reactor . | . . Propulsion 2 | 2 . Treads 2 | 2 . Leg . | . . Wheel . | . . Hover . | . . Flight . | . . Utility 2 | 2 . Device . | . . Storage 1 | 1 . Processor . | . . Hackware . | . . Protection 1 | 1 . Artifact . | . . Weapon 2 | 2 . Energy Gun . | . . Energy Cannon . | . . Ballistic Gun 2 | 2 . Ballistic Cannon . | . . Launcher . | . . Special Weapon . | . . Impact Weapon . | . . Slashing Weapon . | . . Piercing Weapon . | . . Special Melee Weapon . | . . Unidentified Prototypes . | . . Parts Lost 6 | . 6 Power 1 | . 1 Propulsion 2 | . 2 Utility 1 | . 1 Weapon 2 | . 2 Highest Loss Streak 5 | . 5 Average Slot Usage (%) 78 | . 78 Engine 8 | . 8 Treads 23 | . 23 Storage 12 | . 12 Protection 11 | . 11 Ballistic Gun 22 | . 22 Naked Turns . | . . Heaviest Build 16 | 16 16 Greatest Support 40 | 40 40 Greatest Overweight (x) . | . . Average Overweight (x) . | . . Largest Inventory Capacity 8 | 8 8 Average Capacity 7 | 6 8 Most Carried 3 | 3 3 Average Carried 2 | 1 3 Final Capacity 8 | 8 8 Final Carried 3 | 3 3 Class Distribution -------------------- 100% | Hacker-Mutant Dominant Class ---------------- Hacker-Mutant | -10/Materials Resources | -11 -10 ----------- Run | Scr Mat Matter Collected 301 | 231 70 Remotely . | . . Salvage Created . | . . Parts . | . . Haulers Intercepted . | . . Recyclers Shooed . | . . Parts Field Recycled . | . . Retrieved Matter . | . . Parts Self-Destructed . | . . Prevented . | . . Kills | -11 -10 ------- Run | Scr Mat Combat Hostiles Destroyed . | . . Classes Destroyed . | . . Best Kill Streak . | . . Combat Bots Only . | . . Max Kills in Single Turn . | . . Gunslinging . | . . Exploded . | . . Melee . | . . Uniques/NPCs Destroyed . | . . Combat | -11 -10 -------- Run | Scr Mat Damage Taken 947 | . 947 Core 254 | . 254 Absorbed by Shields . | . . Core Remaining (%) 100 | 100 . Volleys Fired 6 | . 6 Largest 2 | . 2 Hottest 40 | . 40 Shots Fired 12 | . 12 Gun 12 | . 12 Cannon . | . . Launcher . | . . Special . | . . Kinetic 12 | . 12 Thermal . | . . Explosive . | . . Electromagnetic . | . . Robot Hit Streak 12 | . 12 Robot Miss Streak . | . . Penetration Max . | . . Secondary Targets . | . . Shots Hit Robots 12 | . 12 Core Hits 3 | . 3 Critical Hits . | . . Critical Kills . | . . Critical Parts Destroyed . | . . Melee Attacks . | . . Impact . | . . Slashing . | . . Piercing . | . . Sneak Attacks . | . . Combat Hostiles . | . . Follow-up Attacks . | . . Damage Inflicted 158 | . 158 Guns 158 | . 158 Cannons . | . . Explosions . | . . Melee . | . . Ramming . | . . Kinetic 158 | . 158 Thermal . | . . Explosive . | . . Electromagnetic . | . . Impact . | . . Slashing . | . . Piercing . | . . Highest Corruption . | . . Average Corruption . | . . Corruption Purged . | . . Overload Shots . | . . Overflow Damage . | . . Projectiles . | . . Explosions . | . . Melee . | . . Knockbacks . | . . Impact . | . . Kinetic . | . . Secondary . | . . Self-Inflicted Damage . | . . Shots . | . . Rammed . | . . Targets Rammed . | . . Kicked . | . . Crushed . | . . Highest Temperature . | . . Average Temperature . | . . Received Heat Transfer 129 | . 129 Siege Activations . | . . Robots Corrupted . | . . Combat Hostiles . | . . Parts Fried . | . . Impact Corruptions . | . . Robots Melted . | . . Combat Hostiles . | . . Parts Melted . | . . Heat Transferred . | . . Parts Sabotaged . | . . Parts Stolen . | . . Parts Stripped . | . . Power Chain Reactions . | . . Missiles Intercepted . | . . Alert | -11 -10 ------- Run | Scr Mat Peak Influence 32 | . 32 Average Influence 2 | . 3 Maximum Alert Level . | . . Low Security (%) 100 | 100 100 Level 1 . | . . Level 2 . | . . Level 3 . | . . Level 4 . | . . Level 5 . | . . High Security . | . . Max Security . | . . Squads Dispatched . | . . Investigation . | . . Extermination . | . . Reinforcement . | . . Assault . | . . Garrison . | . . Intercept . | . . Construction Impeded . | . . Haulers Reinforced . | . . Stealth | -11 -10 --------- Run | Scr Mat Distress Signals . | . . Communications Jammed . | . . Distress Signals . | . . Times Spotted 7 | . 7 Peak Tracking Total 9 | . 9 Tactical Retreats . | . . Traps | -11 -10 ------- Run | Scr Mat Traps Triggered . | . . Indirectly . | . . Trap Hack Attempts . | . . Triggered . | . . Disarmed . | . . Reprogrammed . | . . Reused . | . . Traps Extracted . | . . Installed . | . . Triggered . | . . Machines | -11 -10 ---------- Run | Scr Mat Machines Disabled . | . . Max in Single Turn . | . . Machines Sabotaged . | . . Garrisons Compromised . | . . Overloaded Fab Kills . | . . Fab Network Shutdowns . | . . Hacking | -11 -10 --------- Run | Scr Mat Machines Accessed 2 | . 2 Terminals 2 | . 2 Fabricators . | . . Repair Stations . | . . Recycling Units . | . . Scanalyzers . | . . Garrison Access . | . . Total Hacks 6 | . 6 Successful 4 | . 4 Failed 2 | . 2 Catastrophic . | . . Database Lockouts . | . . Manual 4 | . 4 Terminals 6 | . 6 Fabricators . | . . Repair Stations . | . . Recycling Units . | . . Scanalyzers . | . . Garrison Access . | . . Terminal Hacks 2 | . 2 Zone Layout 2 | . 2 Fabricator Hacks . | . . Repair Station Hacks . | . . Recycling Unit Hacks . | . . Scanalyzer . | . . Garrison Access Hacks . | . . Unauthorized Hacks 6 | . 6 Terminals 2 | . 2 Botnet 2 | . 2 Fabricators . | . . Repair Stations . | . . Recycling Units . | . . Scanalyzers . | . . Garrison Access . | . . Data Cores Recovered . | . . Used . | . . Hacking Detections 1 | . 1 Full Trace Events . | . . Feedback Events . | . . Feedback Blocked . | . . Robot Schematics Acquired . | . . Robots Built . | . . Matter . | . . Time . | . . Total Robot Build Rating . | . . Part Schematics Acquired . | . . Parts Built . | . . Matter . | . . Time . | . . Total Part Build Rating . | . . Parts Repaired . | . . Time . | . . Parts Recycled . | . . Recycled Matter . | . . Retrieved Matter . | . . Retrieved Components . | . . Parts Scanalyzed . | . . Part Schematics Acquired . | . . Parts Damaged . | . . Bothacking | -11 -10 ------------ Run | Scr Mat Used RIF Installer . | . . Robots Hacked . | . . Non-combat . | . . Combat . | . . Robot Hacks Applied . | . . Relay Couplers Released . | . . Robots Rewired . | . . Allies Hacked . | . . Hacks Repelled . | . . Allies | -11 -10 -------- Run | Scr Mat Total Allies . | . . Largest Group . | . . Highest-Rated Group . | . . Highest-Rated Ally . | . . Total Orders . | . . Ally Attacks . | . . Total Damage . | . . Kills . | . . Allies Corrupted . | . . Allies Melted . | . . Intel | -11 -10 ------- Run | Scr Mat Robot Analysis Total . | . . Derelict Logs Recovered . | . . Drone Launches . | . . Drone Recoveries . | . . Exploration | -11 -10 ------------- Run | Scr Mat Turns Passed 319 | 114 205 Spaces Moved 172 | 69 103 Core 10 | 10 . Treads 162 | 59 103 Legs . | . . Wheels . | . . Hover . | . . Flight . | . . Fastest Speed 50 | 50 160 Average Speed 153 | 144 160 Slowest Speed 160 | 160 160 Overloaded Moves . | . . Propulsion Burnouts . | . . Robots Hopped . | . . Cave-ins Triggered . | . . Exploration Rate (%) 19 | 5 34 Regions Visited 1 Branch Regions . Pre-discovered Areas . | . . Known Exits Taken 1 | 1 . Unknown Exits Taken . | . . Scrap Searched . | . . Spaces Dug . | . . Terrain Destroyed . | . . Melee . | . . Projectile . | . . AOE . | . . Actions | -11 -10 --------- Run | Scr Mat Total 189 | 80 109 Wait 3 | 2 1 Move 170 | 68 102 Hop . | . . Pick Up 3 | 3 . Fast Attach 7 | 7 . Attach . | . . Detach . | . . Swap . | . . Drop . | . . Fire 6 | . 6 Melee . | . . Ram . | . . Kick . | . . Crush . | . . Escape Stasis . | . . Rewire . | . . Trap . | . . Miscellaneous . | . . Route ------- -11/Scrapyard -10/Materials History --------- Turn | Location | Event 2 | -11/Scrapyard | Met Revision 17 5 | -11/Scrapyard | Identified exit to Materials 5 | -11/Scrapyard | Discovered exit to Materials (range 16) 115 | -11/Scrapyard | Entered Materials 115 | -10/Materials | Evolved 1 slot: Utility x1 260 | -10/Materials | Identified exit to Mines 260 | -10/Materials | Discovered exit to Mines (range 13) 306 | -10/Materials | Build established: Hacker-Mutant 314 | -10/Materials | Core integrity fell below 50% 319 | -10/Materials | Core integrity fell below 20% 320 | -10/Materials | Destroyed by Lesser Abomination with Etherial Claws Last Messages --------------- 00291_ Hungry Anomaly eats Wheel. 00293_ Lesser Abomination spits out Lgt. Ion Engine. 00293_ Lesser Abomination feeds off Hungry Anomaly, taking Lgt. Ion Engine. 00293_ Frozen by Ice Anomaly. 00293_ Hungry Anomaly eats Lgt. Ion Engine. 00294_ Lesser Abomination spits out Aluminum Leg. 00294_ Lesser Abomination feeds off Hungry Anomaly, taking Aluminum Leg. 00294_ Hungry Anomaly eats Aluminum Leg. 00296_ Lesser Abomination spits out Wheel. 00296_ Lesser Abomination feeds off Hungry Anomaly, taking Wheel. 00296_ Hungry Anomaly eats Wheel. 00297_ Assault Rifle destroyed. 00309_ Lesser Abomination forced to warp away. 00314_ Lesser Abomination feeds off Hungry Anomaly, taking Wheel. 00315_ Propulsion Shielding destroyed. 00316_ Frozen by Ice Anomaly. 00317_ Lesser Abomination feeds off Hungry Anomaly, taking Wheel. 00317_ Critical hit. 00317_ Lgt. Treads destroyed. Map ----- +----------------------------------------------------+ | ???????# #????# # + ## """ # | | ???????# #????# # ########### """ # | | ???????## #????# # ## ## + | | ???????## #????# # ## ## # | | ???????## ##????# # + ## %# | | ???????## #####????# # ## ######## | | ???????## #????????# # ## ## T # | | ???????## #????????# # ## ## # | | ???????## #????????# # ## ## """ # | | ???????## #????????#?###### #" ## """ + | | ????????# #????????# #????# ## ## """ # | | ??###??# #??###########??# #" ## """ # | | """"#?# #??# T #?## ;; ## # | | ""Y""## #### #?# ;;;"""########## | | # % #?# ^ "# """ # | | # """ """ #?# "# "R" # | | % * + """ """ #?# " "# " " + | | # """ """ #?# A """ "# # | | # #?# """ "# # | | ## #?# """ "######### | | #############; "" "######### | | ;;"" " ""# ; """ " # | | ;; " " " ; ; "" " ?# | | "T"" ;; ;;;;; """ "" % # | | """" A " "" # | | ## " A> @ "; + | | ?### A A T; # | | #####??###;;;;; ;;;;; "; ### | | ???????# T ;;;;;;;;; ; "; ???# | | ???????# ########### ; "; ???# | | ???????# """ #?????????### % ;""""""????# | | ???????# """ #???????????? ; " "????# | | ???????# """ #???????????? ;;;;;;;;;"""""?????# | | ???????#[ ????????????? ; " ????? | | ???????##???##?????????????? ; " " ?????? | | ???????????????????????????? ; """ T " ?????? | | ???????????????????????????? ; """? ?" " ??????? | | ????????????????????????????? ; ""???? " ??????? | | ????????????????????????????? ; %???????#???????? | | ????????????????????????????? ??????????????????? | | ????????????????????????????????????????????????? | | ????????????????????????????????????????????????? | | ????????????????????????????????????????????????? | | ????????????????????????????????????????????????? | | ?????????????????????????????????????????????????? | | ?????????????????????????????????????????????????? | | ?????????????????????????????????????????????????? | | ?????????????????????????????????????????????????? | | ?????????????????????????????????????????????????? | | ?????????????????????????????????????????????????? | +----------------------------------------------------+ Best States ------------- Heat Dissipation 25 Energy Generation 10 Energy Capacity 125 Matter Stores 300 Matter Capacity 300 Sight Range 16 Terrain Scan Density 10 Resistance: KI 35 Resistance: TH 35 Resistance: EX 35 Resistance: EM 35 Resistance: I 35 Resistance: S 35 Resistance: P 35 Propulsion Shielding 33 Evasion (%) 40 Recoil Reduction 2 Offensive Hacking 20 Item Schematics ----------------- None Robot Schematics ------------------ None Fabricated ------------ Nothing Alien Tech Used ----------------- None Achievements -------------- None Challenges ------------ None Game ------ Seed ThermalBombardmentNanosword Manual? 0 Play Time 00:07:11 Cumulative 145.4 hours Start 2020.04.10 @ 11:37:35 End 2020.04.10 @ 11:46:20 Sessions 1 Manual Loads 0 Difficulty Explorer Special Mode Halloween2019/Abominations Game No. 95 Rogue 74 Adventurer 0 Explorer 21 Win Type - Total 2 Types 2/0/0/0/0/0/0 Lore% 59 Gallery% 60 Achievement% 55 Wizard Run 0 Options --------- ASCII 0 Keyboard 1 Movement Vi Keybinds 0 Fullscreen 1 Font 18/X11 Map View 76x50 Tactical HUD 1 Map Filters NONE Filters LOW_CONTRAST(47,30,31) Steam 1 RUN: c0225495-8505-407c-9cab-da8aef264006